fUST/lending_fUST_20240115
["ID","MTS","AMOUNT","RATE_DAILY","PERIOD"]
[311655958,1705287041104,-503.09155982,0.0002757,2]
[311655959,1705287041113,-500.39204374,0.0002757,2]
[311655960,1705287041123,-1000.0,0.0002757,2]
[311655961,1705287041132,-500.0,0.0002757,2]
[311655962,1705287041142,-337.83766465,0.0002757,2]
[311655963,1705287041151,-500.0,0.0002757,2]
[311655964,1705287041161,-500.0,0.0002757,2]
[311655965,1705287041171,-500.0,0.0002757,2]
[311655966,1705287041180,-461.17843288,0.0002757,2]
[311655967,1705287041190,-415.79701904,0.0002757,2]
[311655968,1705287041200,-515.47059416,0.0002757,2]
[311655969,1705287041210,-221.1644569,0.0002757,2]
[311655970,1705287041220,-500.0,0.0002757,2]
[311655971,1705287041230,-500.0,0.0002757,2]
[311655972,1705287041239,-621.27163959,0.0002757,2]
[311655973,1705287041248,-204.80706745,0.0002757,2]
[311655974,1705287041258,-500.73512296,0.0002757,2]
[311655975,1705287041267,-500.0,0.0002757,2]
[311655976,1705287041277,-515.07367928,0.0002757,2]
[311655977,1705287041286,-500.0,0.0002757,2]
[311655978,1705287041295,-348.96678123,0.0002757,2]
[311655979,1705287041305,-500.0,0.0002757,2]
[311655980,1705287041315,-500.0,0.0002757,2]
[311655981,1705287041324,-500.0,0.0002757,2]
[311655982,1705287041333,-500.69084539,0.0002757,2]
[311655983,1705287041343,-500.0,0.0002757,2]
[311655984,1705287041353,-505.17466226,0.0002757,2]
[311655985,1705287041362,-500.0,0.0002757,2]
[311655986,1705287041371,-500.0,0.0002757,2]
[311655987,1705287041381,-503.56970682,0.0002757,2]
[311655988,1705287041391,-500.0,0.0002757,2]
[311655989,1705287041401,-254.4993865,0.0002757,2]
[311655990,1705287041410,-501.97924145,0.0002757,2]
[311655991,1705287041420,-500.0,0.0002757,2]
[311655992,1705287041429,-500.0,0.0002757,2]
[311655993,1705287041438,-500.0,0.0002757,2]
[311655994,1705287041448,-504.7,0.0002757,2]
[311655995,1705287041457,-503.25842839,0.0002757,2]
[311655996,1705287041467,-169.67655628,0.0002757,2]
[311655997,1705287041481,-501.62818463,0.0002757,2]
[311655998,1705287041492,-500.0,0.0002757,2]
[311655999,1705287041502,-501.21255682,0.0002757,2]
[311656000,1705287041512,-602.05912595,0.0002757,2]
[311656001,1705287041522,-500.0,0.0002757,2]
[311656002,1705287041531,-500.0,0.0002757,2]
[311656003,1705287041540,-500.0,0.0002757,2]
[311656004,1705287041549,-500.0,0.0002757,2]
[311656005,1705287041560,-35673.24107111,0.00027571,2]
[311656006,1705287041569,-500.0,0.00027669,2]
[311656007,1705287041578,-500.0,0.00027669,2]
[311656008,1705287041588,-500.0,0.00027669,2]
[311656009,1705287041597,-503.66933198,0.00027669,2]
[311656010,1705287041606,-460.30342684,0.00027669,2]
[311656011,1705287041615,-500.0,0.00027669,2]
[311656012,1705287041625,-500.0,0.00027669,2]
[311656013,1705287041635,-500.0,0.00027669,2]
[311656014,1705287041644,-500.0,0.00027669,2]
[311656015,1705287041654,-500.0,0.00027669,2]
[311656016,1705287041663,-500.0,0.00027669,2]
[311656017,1705287041673,-434.3154889,0.00027669,2]
[311656018,1705287041682,-500.0,0.00027669,2]
[311656019,1705287041692,-500.0,0.00027669,2]
[311656020,1705287041701,-186.0221303,0.00027669,2]
[311656021,1705287041711,-274.13785422,0.00027669,2]
[311656022,1705287041720,-500.0,0.00027669,2]
[311656023,1705287041730,-500.0,0.00027669,2]
[311656024,1705287041739,-502.55344223,0.00027669,2]
[311656025,1705287041748,-500.0,0.00027669,2]
[311656026,1705287041835,-449.15448913,0.00027669,2]
[311656027,1705287041845,-500.0,0.00027669,2]
[311656028,1705287041855,-500.0,0.00027669,2]
[311656029,1705287041865,-224.91751069,0.00027669,2]
[311656030,1705287041874,-500.0,0.00027669,2]
[311656031,1705287041884,-500.0,0.00027669,2]
[311656032,1705287041894,-500.0,0.00027669,2]
[311656033,1705287041903,-500.0,0.00027669,2]
[311656034,1705287041912,-500.0,0.00027669,2]
[311656035,1705287041921,-233.9349942,0.00027669,2]
[311656036,1705287041931,-500.0,0.00027669,2]
[311656037,1705287041940,-500.0,0.00027669,2]
[311656038,1705287041950,-500.0,0.00027669,2]
[311656039,1705287041959,-500.0,0.00027669,2]
[311656040,1705287041968,-500.0,0.00027669,2]
[311656041,1705287041977,-500.0,0.00027669,2]
[311656042,1705287041987,-500.0,0.00027669,2]
[311656043,1705287041996,-500.0,0.00027669,2]
[311656044,1705287042005,-500.0,0.00027669,2]
[311656045,1705287042015,-500.0,0.00027669,2]
[311656046,1705287042024,-500.0,0.00027669,2]
[311656047,1705287042033,-500.0,0.0002767,2]
[311656048,1705287042043,-500.0,0.0002767,2]
[311656049,1705287042052,-500.0,0.0002767,2]
[311656050,1705287042061,-500.0,0.0002767,2]
[311656051,1705287042070,-500.0,0.0002767,2]
[311656052,1705287042079,-500.0,0.0002767,2]
[311656053,1705287042089,-562.16562428,0.0002767,14]
[311656054,1705287042098,-500.0,0.0002767,2]
[311656055,1705287042107,-500.0,0.0002767,2]
[311656056,1705287042117,-500.0,0.00027671,2]
[311656057,1705287042126,-227.58827317,0.00027671,2]
[311656058,1705287042135,-500.0,0.00027671,2]
[311656059,1705287042145,-500.0,0.00027671,2]
[311656060,1705287042154,-500.0,0.00027671,2]
[311656061,1705287042163,-500.0,0.00027671,2]
[311656062,1705287042172,-217.02885693,0.00027671,2]
[311656063,1705287042181,-534.48,0.00027671,2]
[311656064,1705287042190,-503.27883976,0.00027671,2]
[311656065,1705287042199,-500.0,0.00027671,2]
[311656066,1705287042208,-318.01175863,0.00027671,2]
[311656067,1705287042218,-500.0,0.00027671,2]
[311656068,1705287042227,-500.0,0.00027671,2]
[311656069,1705287042237,-500.0,0.00027671,2]
[311656071,1705287042246,-504.19080815,0.00027671,2]
[311656072,1705287042255,-500.0,0.00027671,2]
[311656073,1705287042264,-497.11586572,0.00027671,2]
[311656074,1705287042273,-500.0,0.00027671,2]
[311656075,1705287042283,-500.0,0.00027671,2]
[311656077,1705287042292,-253.24117854,0.00027671,2]
[311656079,1705287042301,-500.0,0.00027671,2]
[311656080,1705287042310,-500.66104757,0.00027671,2]
[311656081,1705287042320,-500.0,0.00027671,2]
[311656082,1705287042329,-1828.62,0.00027671,2]
[311656083,1705287042338,-500.0,0.00027671,2]
[311656084,1705287042347,-528.07,0.00027671,2]
[311656085,1705287042357,-2033.21,0.00027671,2]
[311656086,1705287042366,-500.0,0.00027671,2]
[311656087,1705287042376,-506.04070361,0.00027671,2]
[311656088,1705287042385,-500.0,0.00027671,2]
[311656089,1705287042395,-1224.73,0.00027671,2]
[311656090,1705287042404,-500.0,0.00027671,2]
[311656091,1705287042413,-500.0,0.00027671,2]
[311656092,1705287042422,-500.0,0.00027671,2]
[311656093,1705287042431,-500.0,0.00027671,2]
[311656094,1705287042441,-500.0,0.00027671,2]
[311656095,1705287042450,-504.91411394,0.00027671,2]
[311656096,1705287042459,-782.52,0.00027671,2]
[311656097,1705287042468,-563.49998224,0.00027671,2]
[311656098,1705287042479,-938.27,0.00027671,2]
[311656099,1705287042492,-500.0,0.00027671,2]
[311656100,1705287042501,-500.0,0.00027671,2]
[311656101,1705287042510,-500.0,0.00027671,2]
[311656102,1705287042520,-1000.0,0.00027671,2]
[311656103,1705287042529,-551.03374077,0.00027671,2]
[311656104,1705287042538,-500.0,0.00027671,2]
[311656105,1705287042548,-377.45367619,0.00027671,2]
[311656106,1705287042557,-500.0,0.00027671,2]
[311656107,1705287042567,-503.63634839,0.00027671,2]
[311656108,1705287042577,-500.0,0.00027671,2]
[311656109,1705287042586,-504.355808,0.00027671,2]
[311656110,1705287042596,-500.0,0.00027671,2]
[311656111,1705287042605,-500.0,0.00027671,2]
[311656112,1705287042614,-500.0,0.00027671,2]
[311656113,1705287042625,-1248.14,0.00027671,2]
[311656114,1705287042634,-500.0,0.00027671,2]
[311656115,1705287042644,-500.0,0.00027671,2]
[311656116,1705287042653,-278.26569893,0.00027671,2]
[311656117,1705287042664,-623.49430112,0.00027671,2]
[311656118,1705287042673,-534.36183417,0.00027671,2]
[311656119,1705287042683,-500.0,0.00027671,2]
[311656120,1705287042692,-258.3891157,0.00027671,2]
[311656121,1705287042702,-502.91814727,0.00027671,2]
[311656122,1705287042712,-500.0,0.00027671,2]
[311656123,1705287042721,-531.48001928,0.00027671,2]
[311656124,1705287042731,-500.0,0.00027671,2]
[311656125,1705287042741,-500.0,0.00027671,2]
[311656126,1705287042750,-500.0,0.00027671,2]
[311656127,1705287042760,-500.0,0.00027671,2]
[311656128,1705287042771,-500.0,0.00027671,2]
[311656129,1705287042780,-465.11184829,0.00027671,2]
[311656130,1705287042789,-500.0,0.00027671,2]
[311656131,1705287042799,-574.48,0.00027671,2]
[311656132,1705287042808,-500.0,0.00027671,2]
[311656133,1705287042817,-4486.62,0.00027671,2]
[311656134,1705287042826,-500.0,0.00027671,2]
[311656135,1705287042836,-502.67,0.00027671,2]
[311656136,1705287042845,-500.0,0.00027671,2]
[311656137,1705287042854,-500.0,0.00027671,2]
[311656138,1705287042864,-500.0,0.00027671,2]
[311656139,1705287042874,-756.73,0.00027671,2]
[311656140,1705287042883,-504.58019744,0.00027671,2]
[311656141,1705287042894,-225.8789871,0.00027671,2]
[311656142,1705287042904,-1008.65,0.00027671,2]
[311656143,1705287042915,-500.0,0.00027671,2]
[311656144,1705287042924,-751.37,0.00027671,2]
[311656145,1705287042933,-500.0,0.00027671,2]
[311656146,1705287042942,-501.08034467,0.00027671,2]
[311656147,1705287042952,-500.0,0.00027671,2]
[311656148,1705287042961,-250.30709217,0.00027671,2]
[311656149,1705287042970,-500.0,0.00027671,2]
[311656150,1705287042980,-559.57981711,0.00027671,2]
[311656151,1705287042992,-500.0,0.00027671,2]
[311656152,1705287043001,-501.02652475,0.00027671,2]
[311656153,1705287043010,-500.0,0.00027671,2]
[311656154,1705287043019,-500.0,0.00027671,2]
[311656155,1705287043028,-500.0,0.00027671,2]
[311656156,1705287043037,-500.0,0.00027671,2]
[311656157,1705287043046,-504.05934232,0.00027671,2]
[311656158,1705287043055,-500.0,0.00027671,2]
[311656159,1705287043064,-502.10644996,0.00027671,2]
[311656160,1705287043073,-553.59,0.00027671,2]
[311656161,1705287043083,-500.0,0.00027671,2]
[311656162,1705287043092,-10237.47,0.00027671,2]
[311656163,1705287043101,-500.0,0.00027671,2]
[311656164,1705287043109,-1040.7,0.00027671,2]
[311656165,1705287043119,-500.0,0.00027671,2]
[311656166,1705287043128,-905.69,0.00027671,2]
[311656167,1705287043137,-500.0,0.00027671,2]
[311656168,1705287043146,-500.0,0.00027671,2]
[311656170,1705287043155,-500.29488324,0.00027671,2]
[311656172,1705287043164,-500.0,0.00027671,2]
[311656174,1705287043173,-500.0,0.00027671,2]
[311656176,1705287043182,-3647.41,0.00027671,2]
[311656178,1705287043191,-1956.23,0.00027671,2]
[311656180,1705287043200,-872.9,0.00027671,2]
[311656182,1705287043209,-502.1632738,0.00027671,2]
[311656183,1705287043218,-500.0,0.00027671,2]
[311656185,1705287043229,-500.0,0.00027671,2]
[311656186,1705287043237,-500.0,0.00027671,2]
[311656187,1705287043246,-501.31127598,0.00027671,2]
[311656188,1705287043255,-5498.47,0.00027671,2]
[311656191,1705287043264,-500.0,0.00027671,2]
[311656193,1705287043273,-511.99158652,0.00027671,2]
[311656195,1705287043282,-5618.65,0.00027671,2]
[311656196,1705287043292,-500.0,0.00027671,2]
[311656197,1705287043301,-567.53245739,0.00027671,2]
[311656198,1705287043310,-500.0,0.00027671,2]
[311656199,1705287043320,-502.26499882,0.00027671,2]
[311656200,1705287043329,-500.0,0.00027671,2]
[311656201,1705287043338,-17422.42,0.00027671,2]
[311656202,1705287043349,-532.1773052,0.00027671,2]
[311656203,1705287043358,-500.0,0.00027671,2]
[311656204,1705287043367,-2878.01,0.00027671,2]
[311656206,1705287043376,-502.10441126,0.00027671,2]
[311656208,1705287043386,-500.0,0.00027671,2]
[311656210,1705287043395,-500.0,0.00027671,2]
[311656212,1705287043403,-500.0,0.00027671,2]
[311656214,1705287043412,-1035.21,0.00027671,2]
[311656216,1705287043421,-688.3625771,0.000277,2]
[311656218,1705287043431,-312.25901407,0.00027843,2]
[311656220,1705287043439,-500.0,0.00027843,2]
[311656221,1705287043448,-1447.87,0.00027843,2]
[311656222,1705287043457,-500.0,0.00027843,2]
[311656224,1705287043467,-500.0,0.00027843,2]
[311656226,1705287043478,-500.0,0.00027843,2]
[311656228,1705287043487,-500.0,0.00027843,2]
[311656229,1705287043496,-500.0,0.00027843,2]
[311656231,1705287043505,-502.5187616,0.00027843,2]
[311656233,1705287043515,-502.69230495,0.00027844,2]
[311656235,1705287043524,-500.0,0.00027844,2]
[311656237,1705287043534,-540.84,0.00027844,2]
[311656239,1705287043543,-559.72216916,0.00027844,2]
[311656241,1705287043552,-504.48237757,0.00027844,2]
[311656243,1705287043561,-500.0,0.00027844,2]
[311656245,1705287043571,-507.82176411,0.00027844,2]
[311656247,1705287043579,-596.02,0.00027844,2]
[311656249,1705287043588,-500.0,0.00027844,2]
[311656251,1705287043597,-500.0,0.00027844,2]
[311656253,1705287043607,-401.59386146,0.00027844,2]
[311656255,1705287043616,-500.0,0.00027844,2]
[311656257,1705287043625,-500.0,0.00027844,2]
[311656259,1705287043635,-500.0,0.00027844,2]
[311656261,1705287043644,-500.90253928,0.00027844,2]
[311656263,1705287043653,-500.65017791,0.00027844,2]
[311656265,1705287043662,-505.69137092,0.00027844,2]
[311656267,1705287043671,-500.0,0.00027844,2]
[311656274,1705287043753,-500.0,0.00027844,2]
[311656276,1705287043763,-1000.0,0.00027844,2]
[311656278,1705287043773,-525.43692836,0.00027844,2]
[311656280,1705287043782,-500.0,0.00027844,2]
[311656282,1705287043790,-500.0,0.00027844,2]
[311656283,1705287043799,-501.80086505,0.00027844,2]
[311656284,1705287043808,-526.91670753,0.00027844,2]
[311656285,1705287043818,-506.63455425,0.00027844,2]
[311656286,1705287043827,-502.93276528,0.00027844,2]
[311656287,1705287043836,-281.47680327,0.00027844,2]
[311656288,1705287043845,-500.0,0.00027844,2]
[311656289,1705287043856,-502.23369092,0.00027844,2]
[311656290,1705287043866,-504.7,0.00027844,2]
[311656291,1705287043876,-500.0,0.00027844,2]
[311656292,1705287043885,-501.95209961,0.00027844,2]
[311656293,1705287043896,-500.0,0.00027844,2]
[311656294,1705287043905,-500.0,0.00027844,2]
[311656295,1705287043915,-441.93807862,0.000279,2]
[311656296,1705287043925,-500.0,0.00027944,2]
[311656297,1705287043936,-500.0,0.00027944,2]
[311656298,1705287043946,-523.08396244,0.00027944,2]
[311656299,1705287043957,-500.0,0.00027944,2]
[311656300,1705287043967,-383.11577033,0.00027944,2]
[311656301,1705287043977,-500.0,0.00027944,2]
[311656302,1705287043988,-500.0,0.00027944,2]
[311656303,1705287043999,-202.73433386,0.00027944,4]
[311656304,1705287044010,-500.0,0.00027944,4]
[311656305,1705287044020,-211.82992355,0.00027944,4]
[311656306,1705287044031,-324.97354414,0.00027944,4]
[311656307,1705287044041,-497.83570284,0.00027944,4]
[311656308,1705287044052,-500.0,0.00027945,2]
[311656309,1705287044061,-507.19143046,0.00027945,2]
[311656310,1705287044070,-500.0,0.00027945,2]
[311656311,1705287044079,-500.0,0.00027945,2]
[311656312,1705287044089,-534.48,0.00027945,2]
[311656313,1705287044099,-287.40908041,0.00027945,2]
[311656314,1705287044108,-565.18204006,0.00027945,2]
[311656315,1705287044117,-500.0,0.00027945,2]
[311656316,1705287044126,-501.93703226,0.00027945,2]
[311656317,1705287044136,-1828.62,0.00027945,2]
[311656318,1705287044144,-500.0,0.00027945,2]
[311656319,1705287044155,-528.07,0.00027945,2]
[311656320,1705287044167,-2033.21,0.00027945,2]
[311656321,1705287044177,-500.0,0.00027945,2]
[311656322,1705287044187,-500.0,0.00027945,2]
[311656323,1705287044196,-1224.73,0.00027945,2]
[311656324,1705287044205,-503.45776343,0.00027945,2]
[311656325,1705287044214,-500.0,0.00027945,2]
[311656326,1705287044225,-500.0,0.00027945,2]
[311656327,1705287044235,-500.0,0.00027945,2]
[311656328,1705287044244,-782.52,0.00027945,2]
[311656329,1705287044253,-938.27,0.00027945,2]
[311656330,1705287044262,-500.0,0.00027945,2]
[311656331,1705287044271,-500.0,0.00027945,2]
[311656332,1705287044281,-509.6842685,0.00027945,2]
[311656333,1705287044293,-500.0,0.00027945,2]
[311656334,1705287044303,-500.0,0.00027945,2]
[311656335,1705287044314,-500.0,0.00027945,2]
[311656336,1705287044323,-500.0,0.00027945,2]
[311656337,1705287044333,-1248.14,0.00027945,2]
[311656338,1705287044342,-504.42683883,0.00027945,2]
[311656339,1705287044353,-500.0,0.00027945,2]
[311656340,1705287044363,-500.0,0.00027945,2]
[311656341,1705287044374,-500.0,0.00027945,2]
[311656342,1705287044384,-500.0,0.00027945,2]
[311656343,1705287044394,-500.0,0.00027945,2]
[311656344,1705287044403,-574.48,0.00027945,2]
[311656345,1705287044414,-500.0,0.00027945,2]
[311656346,1705287044423,-4486.62,0.00027945,2]
[311656347,1705287044432,-500.0,0.00027945,2]
[311656348,1705287044441,-502.67,0.00027945,2]
[311656349,1705287044450,-500.0,0.00027945,2]
[311656350,1705287044459,-500.0,0.00027945,2]
[311656351,1705287044468,-756.73,0.00027945,2]
[311656352,1705287044477,-1008.65,0.00027945,2]
[311656353,1705287044487,-500.0,0.00027945,2]
[311656354,1705287044498,-751.37,0.00027945,2]
[311656355,1705287044507,-500.0,0.00027945,2]
[311656356,1705287044515,-335.63472498,0.00027945,2]
[311656357,1705287044525,-500.0,0.00027945,2]
[311656358,1705287044535,-500.0,0.00027945,2]
[311656359,1705287044544,-505.37573343,0.00027945,2]
[311656360,1705287044553,-502.8108887,0.00027945,2]
[311656361,1705287044563,-202.92742487,0.00027945,2]
[311656362,1705287044573,-553.59,0.00027945,2]
[311656363,1705287044582,-10237.47,0.00027945,2]
[311656364,1705287044591,-500.0,0.00027945,2]
[311656365,1705287044600,-1040.7,0.00027945,2]
[311656366,1705287044609,-500.0,0.00027945,2]
[311656367,1705287044618,-905.69,0.00027945,2]
[311656368,1705287044627,-496.48027579,0.00027945,2]
[311656369,1705287044636,-500.0,0.00027945,2]
[311656370,1705287044645,-505.17356154,0.00027945,2]
[311656371,1705287044654,-3647.41,0.00027945,2]
[311656372,1705287044663,-1956.23,0.00027945,2]
[311656373,1705287044673,-872.9,0.00027945,2]
[311656374,1705287044682,-500.0,0.00027945,2]
[311656375,1705287044692,-503.35354243,0.00027945,2]
[311656376,1705287044701,-5498.47,0.00027945,2]
[311656377,1705287044710,-504.4795375,0.00027945,2]
[311656378,1705287044719,-500.0,0.00027945,2]
[311656379,1705287044728,-5618.65,0.00027945,2]
[311656380,1705287044738,-500.0,0.00027945,2]
[311656381,1705287044747,-500.0,0.00027945,2]
[311656382,1705287044756,-17422.42,0.00027945,2]
[311656383,1705287044766,-500.0,0.00027945,2]
[311656384,1705287044775,-2878.01,0.00027945,2]
[311656385,1705287044785,-500.0,0.00027945,2]
[311656386,1705287044794,-1035.21,0.00027945,2]
[311656387,1705287044804,-200.0,0.00028,4]
[311656388,1705287044813,-1447.87,0.00028117,2]
[311656389,1705287044822,-500.0,0.00028117,2]
[311656390,1705287044831,-500.0,0.00028117,2]
[311656391,1705287044840,-510.93448844,0.00028117,2]
[311656392,1705287044849,-500.0,0.00028118,2]
[311656393,1705287044858,-540.84,0.00028118,2]
[311656394,1705287044867,-596.02,0.00028118,2]
[311656395,1705287044877,-500.0,0.00028118,2]
[311656396,1705287044886,-500.0,0.00028118,2]
[311656397,1705287044895,-500.0,0.00028118,2]
[311656398,1705287044905,-273.24057728,0.00028118,2]
[311656399,1705287044915,-545.74874845,0.00028118,2]
[311656400,1705287044924,-500.0,0.00028118,2]
[311656401,1705287044933,-500.0,0.00028118,2]
[311656402,1705287044944,-324.20723267,0.00028118,2]
[311656403,1705287044954,-504.7,0.00028118,2]
[311656404,1705287044963,-500.0,0.00028118,2]
[311656405,1705287044973,-500.0,0.00028118,2]
[311656406,1705287044985,-500.0,0.00028216,2]
[311656407,1705287044994,-500.0,0.00028218,2]
[311656408,1705287045003,-500.0,0.00028218,2]
[311656409,1705287045013,-500.0,0.00028218,2]
[311656410,1705287045022,-500.0,0.00028218,2]
[311656411,1705287045032,-500.72294429,0.00028219,2]
[311656412,1705287045042,-500.0,0.00028219,2]
[311656413,1705287045051,-322.79178692,0.00028219,2]
[311656414,1705287045061,-534.48,0.00028219,2]
[311656415,1705287045071,-1828.62,0.00028219,2]
[311656416,1705287045080,-500.0,0.00028219,2]
[311656417,1705287045090,-528.07,0.00028219,2]
[311656418,1705287045099,-2033.21,0.00028219,2]
[311656419,1705287045108,-500.0,0.00028219,2]
[311656420,1705287045117,-1224.73,0.00028219,2]
[311656421,1705287045126,-221.94011817,0.00028219,2]
[311656422,1705287045136,-500.0,0.00028219,2]
[311656423,1705287045145,-500.0,0.00028219,2]
[311656424,1705287045154,-782.52,0.00028219,2]
[311656425,1705287045164,-938.27,0.00028219,2]
[311656426,1705287045173,-500.0,0.00028219,2]
[311656427,1705287045182,-500.0,0.00028219,2]
[311656428,1705287045191,-500.0,0.00028219,2]
[311656429,1705287045201,-500.0,0.00028219,2]
[311656430,1705287045210,-500.0,0.00028219,2]
[311656431,1705287045221,-1248.14,0.00028219,2]
[311656432,1705287045232,-500.0,0.00028219,2]
[311656433,1705287045241,-500.0,0.00028219,2]
[311656434,1705287045251,-500.0,0.00028219,2]
[311656435,1705287045259,-500.0,0.00028219,2]
[311656436,1705287045270,-574.48,0.00028219,2]
[311656437,1705287045279,-500.0,0.00028219,2]
[311656438,1705287045289,-4486.62,0.00028219,2]
[311656439,1705287045300,-500.0,0.00028219,2]
[311656440,1705287045309,-502.67,0.00028219,2]
[311656441,1705287045318,-500.0,0.00028219,2]
[311656442,1705287045328,-756.73,0.00028219,2]
[311656443,1705287045339,-1008.65,0.00028219,2]
[311656444,1705287045351,-500.0,0.00028219,2]
[311656445,1705287045361,-751.37,0.00028219,2]
[311656446,1705287045371,-515.34296366,0.00028219,2]
[311656447,1705287045381,-500.0,0.00028219,2]
[311656448,1705287045390,-553.59,0.00028219,2]
[311656449,1705287045399,-10237.47,0.00028219,2]
[311656450,1705287045408,-500.0,0.00028219,2]
[311656451,1705287045418,-1040.7,0.00028219,2]
[311656452,1705287045429,-196.83956838,0.00028219,2]
[311656453,1705287045438,-905.69,0.00028219,2]
[311656454,1705287045448,-500.0,0.00028219,2]
[311656455,1705287045457,-3647.41,0.00028219,2]
[311656456,1705287045466,-1956.23,0.00028219,2]
[311656457,1705287045475,-872.9,0.00028219,2]
[311656459,1705287045486,-500.0,0.00028219,2]
[311656460,1705287045564,-5498.47,0.00028219,2]
[311656461,1705287045574,-503.73527236,0.00028219,2]
[311656462,1705287045583,-5618.65,0.00028219,2]
[311656463,1705287045593,-500.0,0.00028219,2]
[311656464,1705287045602,-17422.42,0.00028219,2]
[311656465,1705287045612,-500.0,0.00028219,2]
[311656466,1705287045621,-2878.01,0.00028219,2]
[311656467,1705287045630,-500.0,0.00028219,2]
[311656468,1705287045639,-1035.21,0.00028219,2]
[311656469,1705287045648,-375.09,0.00028391,2]
[311656470,1705287045657,-1447.87,0.00028391,2]
[311656471,1705287045666,-256.89112284,0.00028391,2]
[311656472,1705287045675,-598.54010946,0.00028392,2]
[311656473,1705287045684,-540.84,0.00028392,2]
[311656474,1705287045693,-596.02,0.00028392,2]
[311656475,1705287045702,-500.0,0.00028392,2]
[311656477,1705287045711,-500.0,0.00028392,2]
[311656478,1705287045721,-500.0,0.00028392,2]
[311656479,1705287045731,-195.47469929,0.00028392,2]
[311656480,1705287045741,-504.7,0.00028392,2]
[311656481,1705287045750,-500.0,0.00028392,2]
[311656482,1705287045760,-496.6288057,0.00028392,2]
[311656483,1705287045769,-500.0,0.00028491,2]
[311656484,1705287045778,-500.0,0.00028492,2]
[311656485,1705287045788,-500.0,0.00028492,2]
[311656486,1705287045797,-420.73170956,0.00028493,2]
[311656487,1705287045807,-534.48,0.00028493,2]
[311656488,1705287045816,-1828.62,0.00028493,2]
[311656490,1705287045825,-500.0,0.00028493,2]
[311656491,1705287045833,-528.07,0.00028493,2]
[311656492,1705287045842,-2033.21,0.00028493,2]
[311656493,1705287045851,-500.0,0.00028493,2]
[311656494,1705287045860,-1224.73,0.00028493,2]
[311656495,1705287045869,-412.90018737,0.00028493,2]
[311656496,1705287045879,-500.0,0.00028493,2]
[311656497,1705287045888,-782.52,0.00028493,2]
[311656498,1705287045897,-938.27,0.00028493,2]
[311656499,1705287045906,-500.0,0.00028493,2]
[311656500,1705287045915,-500.0,0.00028493,2]
[311656501,1705287045924,-500.0,0.00028493,2]
[311656502,1705287045932,-500.0,0.00028493,2]
[311656503,1705287045941,-500.0,0.00028493,2]
[311656504,1705287045950,-1248.14,0.00028493,2]
[311656505,1705287045959,-500.0,0.00028493,2]
[311656506,1705287045969,-500.0,0.00028493,2]
[311656507,1705287045978,-500.0,0.00028493,2]
[311656508,1705287045987,-574.48,0.00028493,2]
[311656509,1705287045997,-500.0,0.00028493,2]
[311656510,1705287046006,-4486.62,0.00028493,2]
[311656511,1705287046014,-500.0,0.00028493,2]
[311656512,1705287046023,-502.67,0.00028493,2]
[311656513,1705287046033,-500.0,0.00028493,2]
[311656514,1705287046042,-756.73,0.00028493,2]
[311656515,1705287046051,-1008.65,0.00028493,2]